fUSD/lending_fUSD_20260122
["ID","MTS","AMOUNT","RATE_DAILY","PERIOD"]
[403044816,1769098239011,-264.2813588,0.00024873,2]
[403044818,1769098239020,-500.0,0.00024873,2]
[403044820,1769098239036,-500.0,0.00024873,2]
[403044822,1769098239046,-500.0,0.00024873,2]
[403044824,1769098239056,-500.0,0.00024873,2]
[403044826,1769098239066,-500.0,0.00024873,2]
[403044828,1769098239076,-583.46387511,0.00024873,2]
[403044830,1769098239086,-500.0,0.00024873,2]
[403044832,1769098239095,-500.0,0.00024873,2]
[403044835,1769098239106,-500.0,0.00024873,2]
[403044837,1769098239117,-160.46938346,0.00024873,2]
[403044839,1769098239127,-500.0,0.00024873,2]
[403044841,1769098239137,-500.86844017,0.00024873,2]
[403044843,1769098239148,-574.17089799,0.00024873,2]
[403044845,1769098239161,-389.45608517,0.00024873,2]
[403044847,1769098239170,-500.0,0.00024873,2]
[403044849,1769098239180,-500.0,0.00024873,2]
[403044851,1769098239189,-500.0,0.00024873,2]
[403044853,1769098239199,-500.0,0.00024873,2]
[403044855,1769098239208,-500.0,0.00024873,2]
[403044857,1769098239219,-500.0,0.00024873,2]
[403044859,1769098239228,-500.29132853,0.00024873,2]
[403044861,1769098239238,-500.0,0.00024873,2]
[403044863,1769098239248,-500.0,0.00024873,2]
[403044865,1769098239258,-500.0,0.00024873,2]
[403044867,1769098239268,-500.0,0.00024873,2]
[403044869,1769098239277,-150.0,0.00024873,2]
[403044871,1769098239288,-500.0,0.00024873,2]
[403044873,1769098239297,-500.0,0.00024873,2]
[403044875,1769098239307,-500.0,0.00024873,2]
[403044877,1769098239316,-500.44726884,0.00024873,2]
[403044879,1769098239326,-500.0,0.00024873,2]
[403044881,1769098239335,-500.0,0.00024873,2]
[403044883,1769098239345,-500.0,0.00024873,2]
[403044885,1769098239354,-500.0,0.00024873,2]
[403044887,1769098239363,-500.0,0.00024873,2]
[403044889,1769098239373,-500.0,0.00024873,2]
[403044891,1769098239383,-500.0,0.00024873,2]
[403044893,1769098239392,-500.0,0.00024873,2]
[403044896,1769098239402,-152.29,0.0002489,2]
[403044897,1769098239411,-152.29,0.0002489,2]
[403044899,1769098239421,-500.0,0.00024899,2]
[403044901,1769098239431,-305721.897823,0.000249,2]
[403044903,1769098239440,-650.08899016,0.00025,2]
[403044906,1769098239450,-11989.0940323,0.00025003,2]
[403044908,1769098239462,-253.48893549,0.00025317,2]
[403044910,1769098239474,-17983.6410484,0.00025411,2]
[403044912,1769098239483,-152.29,0.00025411,2]
[403044914,1769098239493,-1000.0,0.00025421,2]
[403044936,1769098239830,-1000.0,0.00025421,2]
[403044937,1769098239842,-1000.0,0.00025421,2]
[403044938,1769098239851,-1000.0,0.00025421,2]
[403044939,1769098239862,-150.0,0.00025421,2]
[403044940,1769098239871,-1000.0,0.00025421,2]
[403044941,1769098239880,-1000.0,0.00025421,2]
[403044942,1769098239890,-1000.0,0.00025421,2]
[403044943,1769098239899,-1000.0,0.00025421,2]
[403044944,1769098239909,-1000.0,0.00025421,2]
[403044945,1769098239918,-1000.0,0.00025421,2]
[403044946,1769098239928,-1000.0,0.00025421,2]
[403044947,1769098239938,-1000.0,0.00025421,2]
[403044948,1769098239947,-1000.0,0.00025421,2]
[403044949,1769098239957,-692.16316625,0.00025421,2]
[403044950,1769098239966,-1000.0,0.00025421,2]
[403044951,1769098239976,-1000.0,0.00025421,2]
[403044952,1769098239985,-1000.0,0.00025421,2]
[403044953,1769098239995,-1000.0,0.00025421,2]
[403044954,1769098240004,-1000.0,0.00025421,2]
[403044955,1769098240013,-503.53038109,0.00025421,2]
[403044956,1769098240022,-1000.0,0.00025421,2]
[403044957,1769098240031,-591.27334133,0.00025421,2]
[403044958,1769098240041,-1000.0,0.00025421,2]
[403044959,1769098240050,-1000.0,0.00025421,2]
[403044960,1769098240059,-1000.0,0.00025421,2]
[403044961,1769098240069,-250.0,0.00025421,2]
[403044962,1769098240078,-1000.0,0.00025421,2]
[403044963,1769098240087,-1000.0,0.00025421,2]
[403044964,1769098240097,-1000.0,0.00025421,2]
[403044965,1769098240106,-1139.47030969,0.00025421,2]
[403044966,1769098240116,-1000.0,0.00025421,2]
[403044967,1769098240125,-1000.0,0.00025421,2]
[403044968,1769098240135,-1000.0,0.00025421,2]
[403044969,1769098240144,-1000.0,0.00025421,2]
[403044970,1769098240155,-1000.0,0.00025421,2]
[403044971,1769098240165,-1000.0,0.00025421,2]
[403044973,1769098240174,-1000.0,0.00025421,2]
[403044975,1769098240184,-730.0,0.00025695,2]
[403044977,1769098240193,-1605.1,0.00025918,2]
[403044979,1769098240202,-23978.1880646,0.00025958,2]
[403044981,1769098240211,-500.0,0.00025968,2]
[403044982,1769098240220,-1440.38824472,0.00025968,2]
[403044983,1769098240229,-1500.0,0.00025968,2]
[403044984,1769098240238,-300.0345526,0.00025968,2]
[403044985,1769098240247,-325.63581608,0.00025968,2]
[403044986,1769098240256,-236.97822393,0.00025968,2]
[403044987,1769098240266,-1500.0,0.00025968,2]
[403044988,1769098240276,-1399.63282818,0.00025968,2]
[403044989,1769098240286,-1074.55972892,0.00025968,2]
[403044990,1769098240295,-1500.0,0.00025968,2]
[403044991,1769098240305,-1500.0,0.00025968,2]
[403044992,1769098240314,-630.30097829,0.00025968,2]
[403044993,1769098240323,-1500.0,0.00025968,2]
[403044994,1769098240333,-1500.0,0.00025968,2]
[403044995,1769098240343,-1500.0,0.00025968,2]
[403044996,1769098240352,-1500.0,0.00025968,2]
[403044997,1769098240365,-1500.0,0.00025968,2]
[403044998,1769098240374,-1500.0,0.00025968,2]
[403044999,1769098240383,-1500.0,0.00025968,2]
[403045000,1769098240392,-1285.54220814,0.00025968,2]
[403045001,1769098240402,-1500.0,0.00025968,2]
[403045002,1769098240411,-1500.0,0.00025968,2]
[403045003,1769098240421,-873.13604917,0.00025968,2]
[403045004,1769098240430,-1500.0,0.00025968,2]
[403045005,1769098240440,-401.18379417,0.00025968,2]
[403045006,1769098240449,-1122.45048123,0.00025968,2]
[403045007,1769098240459,-1500.0,0.00025968,2]
[403045008,1769098240472,-1004.82245804,0.00025968,2]
[403045009,1769098240481,-1500.0,0.00025968,2]
[403045010,1769098240490,-1500.0,0.00025968,2]
[403045011,1769098240499,-1500.0,0.00025968,2]
[403045012,1769098240510,-519.21392851,0.00025968,2]
[403045013,1769098240519,-1500.0,0.00025968,2]
[403045014,1769098240528,-191.58643206,0.00025968,2]
[403045015,1769098240538,-1500.0,0.00025968,2]
[403045016,1769098240548,-511.0,0.00026311,8]
[403045017,1769098240557,-5994.54701614,0.00026506,2]
[403045018,1769098240566,-152.29,0.00026506,2]
[403045019,1769098240576,-2000.0,0.00026516,2]
[403045020,1769098240585,-2008.90767806,0.00026516,2]
[403045021,1769098240595,-2000.0,0.00026516,2]
[403045022,1769098240603,-2000.0,0.00026516,2]
[403045023,1769098240613,-2000.0,0.00026516,2]
[403045024,1769098240623,-2000.0,0.00026516,2]
[403045025,1769098240632,-1390.41015708,0.00026516,2]
[403045026,1769098240641,-2000.0,0.00026516,2]
[403045027,1769098240650,-171.1048523,0.00026516,2]
[403045028,1769098240659,-2004.13957622,0.00026516,2]
[403045029,1769098240669,-2000.0,0.00026516,2]
[403045030,1769098240678,-1163.33689384,0.00026516,2]
[403045031,1769098240687,-2000.0,0.00026516,2]
[403045032,1769098240696,-2000.0,0.00026516,2]
[403045033,1769098240706,-2000.0,0.00026516,2]
[403045034,1769098240715,-1672.34199579,0.00026516,2]
[403045035,1769098240724,-2000.0,0.00026516,2]
[403045036,1769098240734,-2000.0,0.00026516,2]
[403045037,1769098240743,-1399.06177826,0.00026516,2]
[403045038,1769098240752,-2000.0,0.00026516,2]
[403045039,1769098240762,-1000.0,0.0002665,2]
[403045040,1769098240771,-1287.82,0.00027,7]
[403045041,1769098240780,-3236.897308,0.00027,2]
[403045042,1769098240788,-2500.0,0.00027064,2]
[403045043,1769098240797,-1038.06736554,0.00027064,2]
[403045044,1769098240806,-1528.6445212,0.00027064,2]
[403045045,1769098240815,-1005.63014816,0.00027064,2]
[403045046,1769098240824,-2500.0,0.00027064,2]
[403045047,1769098240833,-1762.50670829,0.00027064,2]
[403045048,1769098240843,-2500.0,0.00027064,2]
[403045049,1769098240852,-365.66665395,0.00027064,2]
[403045050,1769098240862,-2500.0,0.00027064,2]
[403045051,1769098240871,-2500.0,0.00027064,2]
[403045052,1769098240881,-477.5083774,0.00027064,2]
[403045053,1769098240889,-510.54803012,0.00027064,2]
[403045054,1769098240899,-1698.61326029,0.00027064,2]
[403045055,1769098240908,-150.0,0.00027123,2]
[403045056,1769098240917,-150.0,0.00027369,2]
[403045057,1769098240926,-518.45,0.00027397,2]
[403045058,1769098240935,-1472.02281822,0.00027612,5]
[403045059,1769098240944,-1007.70713806,0.00027612,5]
[403045060,1769098240953,-1307.79502881,0.00027612,5]
[403045061,1769098240962,-773.49858789,0.00027612,5]
[403045062,1769098240972,-500.0,0.00027612,5]
[403045063,1769098240981,-1849.77570359,0.00027728,2]
[403045064,1769098240990,-205.33213309,0.00028001,14]
[403045065,1769098240999,-1605.1,0.00028055,2]
[403045066,1769098241008,-1332.0,0.00028331,2]
[403045067,1769098241018,-615.0,0.00028331,2]
[403045068,1769098241027,-3474.0,0.00028331,2]
[403045069,1769098241037,-184.0,0.00028331,2]
[403045070,1769098241047,-1268.0,0.00028331,2]
[403045071,1769098241056,-1203.0,0.00028331,2]
[403045072,1769098241066,-915.0,0.00028331,2]
[403045073,1769098241075,-2441.0,0.00028331,2]
[403045074,1769098241084,-4828.0,0.00028331,2]
[403045075,1769098241093,-1915.0,0.00029,2]
[403045076,1769098241103,-1247.68,0.00029009,2]
[403045077,1769098241112,-5678.17,0.00029009,2]
[403045078,1769098241122,-1000.0,0.00029073,2]
[403045079,1769098241131,-1000.0,0.000293,2]
[403045080,1769098241141,-150.0,0.000294,14]
[403045081,1769098241150,-1000.0,0.00029589,2]
[403045082,1769098241159,-150.0,0.00029589,2]
[403045083,1769098241168,-511.0,0.00029667,11]
[403045084,1769098241176,-253.48893549,0.00029807,2]
[403045085,1769098241185,-1000.0,0.00029863,2]
[403045086,1769098241195,-5533.0,0.000299,5]
[403045087,1769098241204,-6128.12246298,0.0003,14]
[403045088,1769098241213,-4750.0,0.0003,120]
[403045089,1769098241222,-151.0,0.0003,5]
[403045090,1769098241231,-1000.0,0.00030137,2]
[403045091,1769098241240,-1447.0,0.00030137,2]
[403045092,1769098241249,-1447.0,0.00030192,2]
[403045093,1769098241258,-1605.1,0.00030192,2]
[403045094,1769098241266,-1447.0,0.00030247,2]
[403045095,1769098241275,-1447.0,0.00030301,2]
[403045096,1769098241284,-1447.0,0.00030356,2]
[403045097,1769098241293,-1000.0,0.00030411,7]
[403045098,1769098241302,-1447.0,0.00030411,2]
[403045099,1769098241310,-1447.0,0.00030466,2]
[403045100,1769098241319,-1447.0,0.00030521,2]
[403045101,1769098241328,-1447.0,0.00030575,2]
[403045102,1769098241337,-1849.77570359,0.000306,2]
[403045103,1769098241346,-1447.0,0.0003063,2]
[403045104,1769098241355,-1000.0,0.00030685,7]
[403045105,1769098241365,-1447.0,0.00030685,2]
[403045106,1769098241374,-1447.0,0.0003074,2]
[403045107,1769098241383,-163.08495989,0.00030744,5]
[403045108,1769098241392,-150.47180521,0.00030744,5]
[403045109,1769098241401,-164.12572755,0.00030744,5]
[403045110,1769098241410,-1447.0,0.00030795,2]
[403045111,1769098241419,-1447.0,0.00030849,2]
[403045112,1769098241429,-1447.0,0.00030904,2]
[403045113,1769098241438,-1000.0,0.00030959,7]
[403045114,1769098241456,-1447.0,0.00030959,2]
[403045115,1769098241469,-1447.0,0.00031014,2]
[403045116,1769098241479,-1447.0,0.00031069,2]
[403045117,1769098241488,-1447.0,0.00031123,2]
[403045118,1769098241497,-1447.0,0.00031178,2]
[403045119,1769098241508,-1000.0,0.00031233,7]
[403045120,1769098241518,-1447.0,0.00031233,2]
[403045121,1769098241530,-1447.0,0.00031288,2]
[403045122,1769098241540,-1332.0,0.00031331,2]
[403045123,1769098241549,-615.0,0.00031331,2]
[403045124,1769098241558,-3474.0,0.00031331,2]
[403045125,1769098241568,-184.0,0.00031331,2]
[403045126,1769098241577,-1268.0,0.00031331,2]
[403045127,1769098241586,-1203.0,0.00031331,2]
[403045128,1769098241595,-915.0,0.00031331,2]
[403045129,1769098241604,-2441.0,0.00031331,2]
[403045130,1769098241615,-4828.0,0.00031331,2]
[403045131,1769098241625,-1447.0,0.00031342,2]
[403045132,1769098241635,-1462.46116223,0.00031397,2]
[403045133,1769098241644,-1000.0,0.00031507,7]
[403045134,1769098241654,-1000.0,0.00031781,7]
[403045135,1769098241663,-1000.0,0.00032055,7]
[403045136,1769098241672,-150.0,0.00032055,2]
[403045137,1769098241681,-152.29,0.00032318,2]
[403045138,1769098241690,-1605.1,0.00032328,2]
[403045139,1769098241699,-1000.0,0.00032329,7]
[403045140,1769098241708,-1000.0,0.00032603,7]
[403045141,1769098241718,-2105.79509387,0.000328,2]
[403045142,1769098241727,-1000.0,0.00032877,7]
[403045143,1769098241736,-344.21,0.00032877,2]
[403045144,1769098241746,-168.66483591,0.00032877,2]
[403045145,1769098241755,-500.0,0.00032877,2]
[403045146,1769098241764,-500.0,0.00032877,2]
[403045147,1769098241774,-500.0,0.00032877,2]
[403045148,1769098241783,-500.0,0.00032877,2]
[403045149,1769098241793,-500.0,0.00032877,2]
[403045150,1769098241803,-350.26544043,0.00032877,2]
[403045151,1769098241812,-500.0,0.00032877,5]
[403045152,1769098241825,-784.0,0.00032877,2]
[403045153,1769098241835,-784.0,0.00032932,2]
[403045154,1769098241844,-784.0,0.00032987,2]
[403045155,1769098241855,-556.879932,0.00033,14]
[403045156,1769098241865,-1000.0,0.00033,2]
[403045157,1769098241875,-511.0,0.00033022,14]
[403045158,1769098241885,-504.15285189,0.00033041,60]
[403045159,1769098241895,-784.0,0.00033041,2]
[403045160,1769098241905,-784.0,0.00033096,2]
[403045161,1769098241915,-160.45,0.000331,14]
[403045162,1769098241925,-1000.0,0.00033151,7]
[403045163,1769098241934,-784.0,0.00033151,2]
[403045164,1769098241944,-784.0,0.00033206,2]
[403045165,1769098241954,-784.0,0.00033261,2]
[403045166,1769098241963,-784.0,0.00033315,2]
[403045167,1769098241973,-1000.0,0.00033364,2]
[403045168,1769098241983,-1000.0,0.00033364,2]
[403045169,1769098241993,-1000.0,0.00033364,2]
[403045170,1769098242002,-1000.0,0.00033364,2]
[403045171,1769098242015,-1000.0,0.00033364,2]
[403045172,1769098242026,-784.0,0.0003337,2]
[403045173,1769098242036,-1000.0,0.0003338,2]
[403045174,1769098242045,-1000.0,0.0003338,2]
[403045175,1769098242055,-1000.0,0.0003338,2]
[403045176,1769098242065,-1000.0,0.0003338,2]
[403045177,1769098242074,-1000.0,0.0003338,2]
[403045178,1769098242084,-1000.0,0.00033425,7]
[403045179,1769098242094,-502.21128854,0.00033425,5]
[403045180,1769098242103,-784.0,0.00033425,2]
[403045181,1769098242114,-1849.77570359,0.00033473,2]
[403045182,1769098242124,-784.0,0.0003348,2]
[403045183,1769098242134,-784.0,0.00033535,2]
[403045184,1769098242143,-784.0,0.00033589,2]
[403045185,1769098242153,-784.0,0.00033644,2]
[403045187,1769098242163,-1824.0,0.00033699,7]
[403045189,1769098242172,-784.0,0.00033699,2]
[403045191,1769098242182,-784.0,0.00033754,2]
[403045193,1769098242192,-784.0,0.00033809,2]
[403045195,1769098242201,-784.0,0.00033863,2]
[403045197,1769098242215,-784.0,0.00033918,2]
[403045198,1769098242224,-784.0,0.00033973,2]
[403045199,1769098242234,-784.0,0.00034028,2]
[403045201,1769098242244,-784.0,0.00034082,2]
[403045203,1769098242254,-798.11609551,0.00034137,2]
[403045205,1769098242264,-150.0,0.00034173,5]
[403045207,1769098242274,-300.0,0.00034173,5]
[403045208,1769098242284,-253.48893549,0.00034296,2]
[403045209,1769098242294,-1332.0,0.00034331,2]
[403045210,1769098242304,-615.0,0.00034331,2]
[403045211,1769098242314,-3474.0,0.00034331,2]
[403045212,1769098242323,-173.0,0.00034331,2]
[403045213,1769098242333,-1268.0,0.00034331,2]
[403045214,1769098242343,-1203.0,0.00034331,2]
[403045215,1769098242352,-915.0,0.00034331,2]
[403045216,1769098242363,-2441.0,0.00034331,2]
[403045217,1769098242372,-4828.0,0.00034331,2]
[403045218,1769098242382,-1605.1,0.00034465,5]
[403045219,1769098242391,-150.0,0.00034521,2]
[403045221,1769098242401,-250.0,0.00034721,5]
[403045223,1769098242411,-701.10639016,0.00034721,5]
[403045225,1769098242422,-342.5707012,0.00034849,120]
[403045227,1769098242432,-151.54227,0.00035,14]
[403045229,1769098242442,-350.0,0.00035268,5]
[403045231,1769098242451,-7086.92163647,0.00035405,2]
[403045232,1769098242461,-5000.0,0.00035405,2]
[403045233,1769098242474,-581.83740047,0.00035616,7]
[403045234,1769098242483,-547.0,0.00035947,30]
[403045235,1769098242493,-333.0,0.000361,2]
[403045236,1769098242503,-511.0,0.00036378,18]
[403045237,1769098242513,-1605.1,0.00036602,7]
[403045238,1769098242523,-200.0,0.00037207,2]
[403045239,1769098242532,-1332.0,0.00037331,2]
[403045240,1769098242544,-615.0,0.00037331,2]
[403045241,1769098242554,-3474.0,0.00037331,2]
[403045242,1769098242564,-1268.0,0.00037331,2]
[403045243,1769098242573,-1203.0,0.00037331,2]
[403045244,1769098242583,-915.0,0.00037331,2]
[403045245,1769098242593,-2441.0,0.00037331,2]
[403045246,1769098242602,-4354.296,0.00037331,2]
[403045247,1769098242612,-160.45,0.000387,14]
[403045248,1769098242622,-1605.1,0.00038739,30]
[403045249,1769098242632,-253.48893549,0.00038786,2]
[403045250,1769098242641,-317.98,0.0003926,2]
[403045251,1769098242651,-558.29,0.0003926,2]
[403045252,1769098242660,-151.06,0.0003926,2]
[403045253,1769098242670,-343.99,0.0003926,2]
[403045254,1769098242679,-150.0,0.0003926,2]
[403045255,1769098242688,-200.0,0.00039264,2]
[403045256,1769098242698,-541.87474789,0.00039501,28]
[403045257,1769098242708,-479.69,0.00039507,2]
[403045258,1769098242718,-484.22,0.00039507,2]
[403045259,1769098242727,-1096.6,0.00039507,2]
[403045260,1769098242737,-1224.64,0.00039507,2]
[403045261,1769098242747,-484.22,0.00039507,2]
[403045262,1769098242757,-484.22,0.00039507,2]
[403045263,1769098242767,-484.22,0.00039507,2]
[403045264,1769098242778,-1290.72,0.00039507,2]
[403045265,1769098242788,-1525.626,0.00039533,55]
[403045266,1769098242798,-1224.64,0.00039534,2]
[403045267,1769098242807,-612.32,0.00039534,2]
[403045268,1769098242816,-612.32,0.00039534,2]
[403045269,1769098242826,-612.32,0.00039534,2]
[403045270,1769098242835,-612.32,0.00039534,2]
[403045271,1769098242845,-554.57,0.00039534,2]
[403045272,1769098242855,-151.0,0.0003962,14]
[403045273,1769098242865,-201310.748198,0.00039623,2]
[403045274,1769098242875,-9686.2198682,0.00039623,2]
[403045275,1769098242884,-3484.3951044,0.00039623,2]
[403045276,1769098242894,-255.9217639,0.00039623,2]
[403045277,1769098242903,-150.0,0.0003963,5]
[403045278,1769098242914,-511.0,0.00039733,21]
[403045279,1769098242924,-500.0,0.00039999,30]
[403045280,1769098242934,-616.0,0.00039999,30]
[403045281,1769098242943,-6888.0,0.00039999,30]
[403045282,1769098242953,-620.0,0.00039999,30]
[403045283,1769098242963,-250.0,0.00039999,30]
[403045284,1769098242972,-500.0,0.00039999,30]
[403045285,1769098242981,-638.792,0.00039999,30]
[403045286,1769098242991,-7142.856,0.00039999,30]
[403045287,1769098243001,-642.94,0.00039999,30]
[403045288,1769098243010,-250.0,0.00039999,30]
[403045289,1769098243020,-500.0,0.00039999,30]
[403045290,1769098243030,-662.427304,0.00039999,30]
[403045291,1769098243039,-666.72878,0.00039999,30]
[403045292,1769098243049,-7407.141672,0.00039999,30]
[403045293,1769098243059,-250.0,0.00039999,30]
[403045294,1769098243069,-500.0,0.00039999,30]
[403045295,1769098243079,-686.93711425,0.00039999,30]
[403045296,1769098243088,-691.39774486,0.00039999,30]
[403045297,1769098243097,-7681.20591386,0.00039999,30]
[403045298,1769098243107,-500.0,0.00039999,30]
[403045299,1769098243117,-250.0,0.00039999,30]
[403045300,1769098243127,-712.35378748,0.00039999,30]
[403045301,1769098243136,-716.97946142,0.00039999,30]
[403045302,1769098243146,-7965.41053268,0.00039999,30]
[403045303,1769098243156,-500.0,0.00039999,30]
[403045304,1769098243166,-250.0,0.00039999,30]
[403045305,1769098243175,-520.0,0.00039999,30]
[403045306,1769098243185,-738.71087761,0.00039999,30]
[403045307,1769098243195,-8260.13072239,0.00039999,30]
[403045308,1769098243204,-250.0,0.00039999,30]
[403045309,1769098243213,-500.0,0.00039999,30]
[403045310,1769098243223,-539.24,0.00039999,30]
[403045311,1769098243232,-766.04318008,0.00039999,30]
[403045312,1769098243242,-8565.75555911,0.00039999,30]
[403045313,1769098243251,-250.0,0.00039999,30]
[403045314,1769098243262,-250.0,0.00039999,30]
[403045315,1769098243271,-500.0,0.00039999,30]
[403045316,1769098243281,-559.19188,0.00039999,30]
[403045317,1769098243290,-250.0,0.00039999,30]
[403045318,1769098243300,-794.38677775,0.00039999,30]
[403045319,1769098243310,-250.0,0.00039999,30]
[403045320,1769098243319,-8882.6885148,0.00039999,30]
[403045321,1769098243329,-250.0,0.00039999,30]
[403045322,1769098243338,-579.88197956,0.00039999,30]
[403045323,1769098243348,-250.0,0.00039999,30]
[403045324,1769098243357,-250.0,0.00039999,30]
[403045325,1769098243367,-614.71653592,0.00039999,30]
[403045326,1769098243377,-250.0,0.00039999,30]
[403045327,1769098243386,-601.3376128,0.00039999,30]
[403045328,1769098243395,-250.0,0.00039999,30]
[403045329,1769098243405,-250.0,0.00039999,30]
[403045330,1769098243414,-623.58710448,0.00039999,30]
[403045331,1769098243423,-250.0,0.00039999,30]
[403045332,1769098243433,-250.0,0.00039999,30]
[403045333,1769098243443,-646.65982734,0.00039999,30]
[403045334,1769098243452,-250.0,0.00039999,30]
[403045335,1769098243461,-250.0,0.00039999,30]
[403045336,1769098243475,-670.58624095,0.00039999,30]
[403045337,1769098243484,-250.0,0.00039999,30]
[403045338,1769098243494,-250.0,0.00039999,30]
[403045339,1769098243503,-300.0,0.00039999,30]
[403045340,1769098243514,-3000.0,0.00039999,30]
[403045341,1769098243524,-250.0,0.00039999,30]
[403045342,1769098243533,-311.1,0.00039999,30]
[403045343,1769098243543,-250.0,0.00039999,30]
[403045344,1769098243554,-3000.0,0.00039999,30]
[403045345,1769098243579,-250.0,0.00039999,30]
[403045346,1769098243589,-250.0,0.00039999,30]
[403045347,1769098243599,-3000.0,0.00039999,30]
[403045348,1769098243609,-1108.57314645,0.00039999,30]
[403045349,1769098243620,-250.0,0.00039999,30]
[403045350,1769098243630,-250.0,0.00039999,30]
[403045351,1769098243640,-151.0,0.00039999,30]
[403045352,1769098243649,-500.0,0.00039999,30]
[403045353,1769098243658,-151.0,0.00039999,30]
[403045354,1769098243668,-151.0,0.00039999,30]
[403045355,1769098243678,-151.0,0.00039999,30]
[403045356,1769098243687,-151.0,0.00039999,10]
[403045357,1769098243696,-518.5,0.00039999,30]
[403045358,1769098243705,-151.0,0.00039999,30]
[403045359,1769098243715,-156.587,0.00039999,30]
[403045360,1769098243724,-250.0,0.00039999,30]
[403045361,1769098243735,-151.0,0.00039999,30]
[403045362,1769098243744,-250.0,0.00039999,30]
[403045363,1769098243754,-158.07062391,0.00039999,30]
[403045364,1769098243763,-162.380719,0.00039999,30]
[403045365,1769098243773,-500.0,0.00039999,30]
[403045366,1769098243783,-250.0,0.00039999,30]
[403045367,1769098243792,-151.0,0.00039999,30]
[403045368,1769098243802,-537.6845,0.00039999,30]
[403045369,1769098243811,-250.0,0.00039999,30]
[403045370,1769098243820,-168.3888056,0.00039999,30]
[403045371,1769098244100,-500.0,0.00039999,30]
[403045372,1769098244109,-250.0,0.00039999,30]
[403045373,1769098244119,-151.0,0.00039999,30]
[403045374,1769098244130,-250.0,0.00039999,30]
[403045375,1769098244139,-557.5788265,0.00039999,30]
[403045376,1769098244148,-500.0,0.00039999,30]
[403045377,1769098244158,-250.0,0.00039999,30]
[403045378,1769098244168,-151.0,0.00039999,30]
[403045379,1769098244177,-250.0,0.00039999,30]
[403045380,1769098244186,-500.0,0.00039999,30]
[403045381,1769098244196,-250.0,0.00039999,30]
[403045382,1769098244205,-151.0,0.00039999,30]
[403045383,1769098244214,-500.0,0.00039999,30]
[403045384,1769098244223,-151.0,0.00039999,30]
[403045385,1769098244232,-500.0,0.00039999,30]
[403045386,1769098244242,-250.0,0.00039999,30]
[403045387,1769098244251,-500.0,0.00039999,30]
[403045388,1769098244260,-500.0,0.00039999,30]
[403045389,1769098244270,-151.0,0.00039999,30]
[403045390,1769098244278,-250.0,0.00039999,30]
[403045391,1769098244287,-500.0,0.00039999,30]
[403045392,1769098244296,-500.0,0.00039999,30]
[403045393,1769098244306,-500.0,0.00039999,30]
[403045394,1769098244315,-151.0,0.00039999,30]
[403045395,1769098244323,-302.46571259,0.00039999,30]
[403045396,1769098244333,-500.0,0.00039999,30]
[403045397,1769098244342,-500.0,0.00039999,30]
[403045398,1769098244351,-500.0,0.00039999,30]
[403045399,1769098244361,-151.0,0.00039999,30]
[403045400,1769098244370,-500.0,0.00039999,30]
[403045401,1769098244379,-500.0,0.00039999,30]
[403045402,1769098244389,-500.0,0.00039999,30]
[403045403,1769098244398,-207.85054472,0.00039999,30]
[403045404,1769098244407,-151.0,0.00039999,30]
[403045405,1769098244417,-500.0,0.00039999,30]
[403045406,1769098244427,-500.0,0.00039999,30]
[403045407,1769098244436,-500.0,0.00039999,30]